[Event "77th LOTTO POL-ch 2020"]
[Site "Warsaw"]
[Date "2020.07.25"]
[Round "3.1"]
[White "Sadzikowski, Daniel"]
[Black "Heberla, Bartlomiej"]
[Result "1/2-1/2"]
[ECO "A63"]
[WhiteElo "2374"]
[BlackElo "2527"]
[Annotator "ChessBase"]
[PlyCount "63"]
[EventDate "2020.07.21"]
[EventType "k.o."]
[EventCountry "POL"]
[SourceTitle "playchess.com"]
[Source "ChessBase"]
[SourceQuality "1"]
[TimeControl "40/5400+30:1800+30"]

1. d4 {[%emt 0:00:00]} Nf6 {[%emt 0:00:00]} 2. c4 {[%emt 0:00:00]} c5 {[%emt 0:00:00]} 3. d5 {[%emt 0:00:00]} g6 {[%emt 0:00:00]} 4. Nc3 {[%emt 0:01:32]} Bg7 {[%emt 0:00:00]} 5. g3 {[%emt 0:02:19]} O-O {[%emt 0:01:09]} 6. Bg2 {[%emt 0:00:31]} e6 {[%emt 0:00:03]} 7. Nf3 {[%emt 0:00:14]} exd5 {[%emt 0:00:06]} 8. cxd5 {[%emt 0:00:04]} d6 {[%emt 0:00:03]} 9. O-O {[%emt 0:00:06]} Nbd7 {[%emt 0:00:05]} 10. Bf4 {[%emt 0:08:23]} Qe7 {[%emt 0:00:06]} 11. a4 {[%emt 0:09:15]} b6 {[%emt 0:03:54]} 12. Re1 {[%emt 0:01:55]} Ng4 {[%emt 0:00:56]} 13. Bg5 {[%emt 0:02:33]} f6 {[%emt 0:03:38]} 14. Bc1 {[%emt 0:01:07]} Nde5 {[%emt 0:11:41]} 15. h3 {[%emt 0:13:04]} Nh6 {[%emt 0:00:16]} 16. Nxe5 {[%emt 0:00:45]} fxe5 {[%emt 0:00:29]} 17. e4 {[%emt 0:00:44]} Nf7 {[%emt 0:03:46]} 18. Kh2 {[%emt 0:09:00]} h5 {[%emt 0:02:55]} 19. Qe2 {[%emt 0:01:35]} Bh6 {[%emt 0:18:50]} 20. Bxh6 {[%emt 0:05:07]} Nxh6 {[%emt 0:01:22]} 21. a5 {[%emt 0:06:47]} Bd7 {[%emt 0:01:06]} 22. Rf1 {[%emt 0:01:03]} h4 {[%emt 0:02:15]} 23. Qe3 {[%emt 0:04:32]} Kg7 {[%emt 0:09:38]} 24. axb6 {[%emt 0:06:56]} axb6 {[%emt 0:00:11]} 25. Kg1 {[%emt 0:00:26]} hxg3 {[%emt 0:14:15]} 26. fxg3 {[%emt 0:00:18]} Rxf1+ {[%emt 0:00:07]} 27. Rxf1 {[%emt 0:00:04]} b5 {[%emt 0:00:10]} 28. Rb1 {[%emt 0:04:23]} b4 {[%emt 0:03:27]} 29. Nd1 {[%emt 0:00:03]} Nf7 {[%emt 0:00:52]} 30. Qd2 {[%emt 0:03:31]} Bb5 {[%emt 0:06:47]} 31. h4 {[%emt 0:00:53]} Nh6 {[%emt 0:03:05]} 32. Ne3 {[%emt 0:00:14]} 1/2-1/2